fUST/lending_fUST_20260115
["ID","MTS","AMOUNT","RATE_DAILY","PERIOD"]
[401943618,1768416648792,-200.0,0.00024658,2]
[401943619,1768416648801,-500.0,0.00024658,2]
[401943620,1768416648810,-1700.0,0.00024662,2]
[401943621,1768416648820,-800.0,0.00024692,2]
[401943622,1768416648829,-151.0,0.00024699,3]
[401943623,1768416648838,-283.61044671,0.00024699,3]
[401943624,1768416648848,-151.0,0.00024699,3]
[401943625,1768416648857,-168.3888056,0.00024699,3]
[401943626,1768416648867,-250.0,0.00024699,3]
[401943627,1768416648876,-151.0,0.00024699,3]
[401943628,1768416648886,-297.43886801,0.00024699,3]
[401943629,1768416648895,-250.0,0.00024699,3]
[401943630,1768416648904,-174.61919141,0.00024699,3]
[401943631,1768416648914,-250.0,0.00024699,3]
[401943632,1768416648924,-250.0,0.00024699,3]
[401943633,1768416648933,-181.08010149,0.00024699,3]
[401943634,1768416648943,-151.0,0.00024699,3]
[401943635,1768416648953,-250.0,0.00024699,3]
[401943636,1768416648962,-250.0,0.00024699,3]
[401943637,1768416648973,-187.78006525,0.00024699,3]
[401943638,1768416648985,-151.0,0.00024699,3]
[401943639,1768416648995,-250.0,0.00024699,3]
[401943640,1768416649005,-250.0,0.00024699,3]
[401943641,1768416649015,-194.72792766,0.00024699,3]
[401943642,1768416649025,-151.0,0.00024699,3]
[401943643,1768416649034,-250.0,0.00024699,3]
[401943644,1768416649044,-250.0,0.00024699,3]
[401943645,1768416649054,-201.93286099,0.00024699,3]
[401943646,1768416649064,-151.0,0.00024699,3]
[401943647,1768416649074,-271.32439801,0.00024699,3]
[401943648,1768416649083,-250.0,0.00024699,3]
[401943649,1768416649093,-209.40437684,0.00024699,3]
[401943650,1768416649103,-151.0,0.00024699,3]
[401943651,1768416649113,-160.0,0.00024699,3]
[401943652,1768416649123,-250.0,0.00024699,3]
[401943653,1768416649133,-500.0,0.00024699,3]
[401943654,1768416649144,-217.15233878,0.00024699,3]
[401943655,1768416649154,-151.0,0.00024699,3]
[401943656,1768416649164,-160.0,0.00024699,3]
[401943657,1768416649174,-250.0,0.00024699,3]
[401943658,1768416649183,-500.0,0.00024699,3]
[401943659,1768416649192,-225.18697532,0.00024699,3]
[401943660,1768416649202,-151.0,0.00024699,3]
[401943661,1768416649211,-151.0,0.00024699,3]
[401943662,1768416649221,-250.0,0.00024699,3]
[401943663,1768416649231,-164.08273023,0.00024699,3]
[401943664,1768416649241,-233.51889341,0.00024699,3]
[401943665,1768416649251,-500.0,0.00024699,3]
[401943666,1768416649261,-163.79209166,0.00024699,3]
[401943667,1768416649271,-250.0,0.00024699,3]
[401943668,1768416649280,-242.15909246,0.00024699,3]
[401943669,1768416649290,-500.0,0.00024699,3]
[401943670,1768416649299,-250.0,0.00024699,3]
[401943671,1768416649309,-265.87708981,0.00024699,3]
[401943672,1768416649320,-500.0,0.00024699,3]
[401943673,1768416649329,-250.0,0.00024699,3]
[401943674,1768416649339,-500.0,0.00024699,3]
[401943675,1768416649349,-168.3888056,0.00024699,3]
[401943676,1768416649359,-250.0,0.00024699,3]
[401943677,1768416649369,-500.0,0.00024699,3]
[401943678,1768416649379,-250.0,0.00024699,3]
[401943679,1768416649389,-174.61919141,0.00024699,3]
[401943680,1768416649398,-500.0,0.00024699,3]
[401943681,1768416649408,-500.0,0.00024699,3]
[401943682,1768416649418,-250.0,0.00024699,3]
[401943683,1768416649428,-181.08010149,0.00024699,3]
[401943684,1768416649437,-500.0,0.00024699,3]
[401943685,1768416649447,-250.0,0.00024699,3]
[401943686,1768416649456,-187.78006525,0.00024699,3]
[401943687,1768416649467,-250.0,0.00024699,3]
[401943688,1768416649476,-151.0,0.00024699,3]
[401943689,1768416649486,-250.0,0.00024699,3]
[401943690,1768416649496,-500.0,0.00024699,3]
[401943691,1768416649509,-194.72792766,0.00024699,3]
[401943692,1768416649521,-250.0,0.00024699,3]
[401943693,1768416649531,-151.0,0.00024699,3]
[401943694,1768416649542,-500.0,0.00024699,3]
[401943695,1768416649552,-250.0,0.00024699,3]
[401943696,1768416649562,-201.93286099,0.00024699,3]
[401943697,1768416649572,-151.0,0.00024699,3]
[401943698,1768416649581,-2230.315306,0.00024699,3]
[401943699,1768416649591,-500.0,0.00024699,3]
[401943700,1768416649601,-250.0,0.00024699,3]
[401943701,1768416649611,-209.40437684,0.00024699,3]
[401943702,1768416649622,-151.0,0.00024699,3]
[401943703,1768416649633,-2312.83697232,0.00024699,3]
[401943704,1768416649643,-500.0,0.00024699,3]
[401943705,1768416649653,-250.0,0.00024699,3]
[401943706,1768416649664,-217.15233878,0.00024699,3]
[401943707,1768416649674,-151.0,0.00024699,3]
[401943708,1768416649685,-250.0,0.00024699,3]
[401943709,1768416649697,-250.0,0.00024699,3]
[401943710,1768416649706,-500.0,0.00024699,3]
[401943711,1768416649716,-2398.4119403,0.00024699,3]
[401943712,1768416649726,-225.18697532,0.00024699,3]
[401943713,1768416649736,-151.0,0.00024699,3]
[401943714,1768416649745,-250.0,0.00024699,3]
[401943715,1768416649755,-250.0,0.00024699,3]
[401943716,1768416649764,-2487.15318209,0.00024699,3]
[401943717,1768416649774,-500.0,0.00024699,3]
[401943718,1768416649784,-233.51889341,0.00024699,3]
[401943719,1768416649793,-151.0,0.00024699,3]
[401943720,1768416649804,-255.9181721,0.00024699,3]
[401943721,1768416649814,-250.0,0.00024699,3]
[401943722,1768416649823,-500.0,0.00024699,3]
[401943723,1768416649834,-2579.17784983,0.00024699,3]
[401943724,1768416649844,-242.15909246,0.00024699,3]
[401943725,1768416649854,-273.43146715,0.00024699,3]
[401943726,1768416649864,-151.0,0.00024699,3]
[401943727,1768416649874,-251.11897888,0.00024699,3]
[401943728,1768416649884,-2674.60743027,0.00024699,3]
[401943729,1768416649893,-151.0,0.00024699,3]
[401943730,1768416649903,-260.4103811,0.00024699,3]
[401943731,1768416649913,-2773.56790519,0.00024699,3]
[401943732,1768416649922,-151.0,0.00024699,3]
[401943733,1768416649932,-2876.18991768,0.00024699,3]
[401943734,1768416649942,-270.0455652,0.00024699,3]
[401943735,1768416649952,-151.0,0.00024699,3]
[401943736,1768416649962,-2982.60894464,0.00024699,3]
[401943737,1768416649973,-280.03725112,0.00024699,3]
[401943738,1768416649987,-151.0,0.00024699,3]
[401943739,1768416649997,-3092.96547559,0.00024699,3]
[401943740,1768416650008,-290.39862941,0.00024699,3]
[401943741,1768416650018,-151.0,0.00024699,3]
[401943742,1768416650028,-3207.40519818,0.00024699,3]
[401943743,1768416650042,-461.67526834,0.00024699,3]
[401943744,1768416650054,-301.1433787,0.00024699,3]
[401943745,1768416650063,-245.0,0.00024699,3]
[401943746,1768416650073,-478.75725327,0.00024699,3]
[401943747,1768416650084,-496.47127164,0.00024699,3]
[401943748,1768416650094,-514.84070869,0.00024699,3]
[401943749,1768416650104,-533.88981491,0.00024699,3]
[401943750,1768416650114,-553.64373807,0.00024699,3]
[401943751,1768416650124,-574.12855637,0.00024699,3]
[401943752,1768416650134,-595.37131296,0.00024699,3]
[401943753,1768416650144,-617.40005154,0.00024699,3]
[401943754,1768416650154,-640.24385345,0.00024699,3]
[401943755,1768416650164,-663.93287602,0.00024699,3]
[401943756,1768416650174,-688.49839244,0.00024699,3]
[401943757,1768416650184,-713.97283296,0.00024699,3]
[401943758,1768416650194,-249.3215153,0.00024699,3]
[401943759,1768416650204,-214.05,0.000247,7]
[401943760,1768416650213,-2145.3,0.000247,7]
[401943761,1768416650223,-900.0,0.00024701,2]
[401943762,1768416650233,-8377.97536092,0.00024704,7]
[401943763,1768416650242,-4759.08771008,0.00024704,7]
[401943764,1768416650252,-800.0,0.00024743,2]
[401943765,1768416650262,-900.0,0.00024747,2]
[401943766,1768416650272,-900.0,0.00024757,2]
[401943767,1768416650282,-2670.80815923,0.00024758,7]
[401943768,1768416650293,-1687.56891871,0.00024758,7]
[401943769,1768416650303,-6743.52539915,0.00024758,7]
[401943770,1768416650313,-5000.0,0.00024768,2]
[401943771,1768416650324,-500.0,0.00024771,2]
[401943772,1768416650334,-1700.0,0.00024787,2]
[401943773,1768416650344,-1700.0,0.0002479,2]
[401943774,1768416650354,-500.0,0.00024795,2]
[401943775,1768416650364,-38339.7520226,0.00024798,2]
[401943776,1768416650374,-3105.7407623,0.00024798,2]
[401943777,1768416650384,-35252.3182803,0.00024798,2]
[401943778,1768416650395,-11673.47904,0.00024798,2]
[401943779,1768416650405,-167.014609,0.00024798,7]
[401943780,1768416650415,-171.177356,0.00024798,7]
[401943781,1768416650425,-171.177356,0.00024798,7]
[401943782,1768416650434,-341.283719,0.00024798,7]
[401943783,1768416650445,-341.283719,0.00024798,7]
[401943784,1768416650455,-171.177356,0.00024798,7]
[401943785,1768416650464,-341.283719,0.00024798,7]
[401943786,1768416650473,-171.177356,0.00024798,7]
[401943787,1768416650483,-341.283719,0.00024798,7]
[401943788,1768416650492,-163.521598,0.00024798,7]
[401943789,1768416650502,-151.0,0.00024798,7]
[401943790,1768416650512,-677.806969,0.00024798,7]
[401943791,1768416650522,-677.806969,0.00024798,7]
[401943792,1768416650531,-105228.9266415,0.00024798,2]
[401943793,1768416650540,-677.806969,0.00024798,7]
[401943794,1768416650550,-677.806969,0.00024798,7]
[401943795,1768416650559,-151.0,0.00024798,7]
[401943796,1768416650568,-151.0,0.00024798,7]
[401943797,1768416650577,-151.0,0.00024798,7]
[401943798,1768416650587,-151.0,0.00024798,7]
[401943799,1768416650597,-151.0,0.00024798,2]
[401943800,1768416650607,-500.0,0.00024804,2]
[401943801,1768416650617,-900.0,0.00024828,2]
[401943802,1768416650627,-151.0,0.00024828,7]
[401943803,1768416650637,-151.0,0.00024828,7]
[401943804,1768416650647,-151.0,0.00024828,7]
[401943805,1768416650656,-151.0,0.00024828,7]
[401943806,1768416650666,-151.0,0.00024828,7]
[401943807,1768416650675,-151.0,0.00024828,7]
[401943808,1768416650685,-151.0,0.00024828,7]
[401943809,1768416650694,-151.0,0.00024828,7]
[401943810,1768416650703,-293.486126,0.00024828,7]
[401943811,1768416650712,-151.0,0.00024828,7]
[401943812,1768416650722,-151.0,0.00024828,7]
[401943813,1768416650732,-187.824189,0.00024828,7]
[401943814,1768416650742,-151.0,0.00024828,7]
[401943815,1768416650897,-151.0,0.00024828,7]
[401943816,1768416650907,-151.0,0.00024828,7]
[401943817,1768416650916,-151.0,0.00024828,7]
[401943818,1768416650925,-151.0,0.00024828,7]
[401943819,1768416650934,-261.730243,0.00024828,7]
[401943820,1768416650944,-1700.0,0.00024844,2]
[401943821,1768416650953,-1700.0,0.00024859,2]
[401943822,1768416650963,-900.0,0.00024898,2]
[401943823,1768416650972,-151.0,0.000249,7]
[401943824,1768416650983,-151.0,0.000249,7]
[401943825,1768416650992,-228.779396,0.000249,7]
[401943826,1768416651002,-462.387637,0.000249,7]
[401943827,1768416651013,-462.387637,0.000249,7]
[401943828,1768416651022,-462.387637,0.000249,7]
[401943829,1768416651035,-462.387637,0.000249,7]
[401943830,1768416651046,-151.0,0.000249,7]
[401943831,1768416651059,-151.0,0.000249,7]
[401943832,1768416651068,-151.0,0.000249,7]
[401943833,1768416651077,-180.50802,0.000249,7]
[401943834,1768416651087,-151.0,0.000249,7]
[401943835,1768416651096,-151.0,0.000249,7]
[401943836,1768416651106,-151.0,0.000249,7]
[401943837,1768416651115,-280.086265,0.000249,7]
[401943838,1768416651124,-222.949825,0.000249,7]
[401943839,1768416651134,-280.086265,0.000249,7]
[401943840,1768416651143,-280.086265,0.000249,7]
[401943841,1768416651152,-280.086265,0.000249,7]
[401943842,1768416651161,-277.161137,0.000249,7]
[401943843,1768416651170,-277.161137,0.000249,7]
[401943844,1768416651179,-151.0,0.000249,7]
[401943845,1768416651188,-277.161137,0.000249,7]
[401943846,1768416651198,-277.161137,0.000249,7]
[401943847,1768416651207,-306.935561,0.000249,7]
[401943848,1768416651217,-306.935561,0.000249,7]
[401943849,1768416651226,-306.935561,0.000249,7]
[401943850,1768416651236,-306.935561,0.000249,7]
[401943851,1768416651247,-239.496216,0.000249,7]
[401943852,1768416651257,-239.496216,0.000249,7]
[401943853,1768416651267,-239.496216,0.000249,7]
[401943854,1768416651276,-239.496216,0.000249,7]
[401943855,1768416651285,-1138.584656,0.000249,7]
[401943856,1768416651295,-1138.584656,0.000249,7]
[401943857,1768416651304,-1138.584656,0.000249,7]
[401943858,1768416651314,-1138.584656,0.000249,7]
[401943859,1768416651323,-151.0,0.000249,7]
[401943860,1768416651333,-151.0,0.000249,7]
[401943861,1768416651342,-151.0,0.000249,7]
[401943862,1768416651351,-352.688053,0.000249,7]
[401943863,1768416651361,-352.688053,0.000249,7]
[401943864,1768416651371,-352.688053,0.000249,7]
[401943865,1768416651381,-151.0,0.000249,7]
[401943866,1768416651391,-352.688053,0.000249,7]
[401943867,1768416651401,-151.0,0.000249,7]
[401943868,1768416651411,-258.319491,0.000249,7]
[401943869,1768416651421,-258.319491,0.000249,7]
[401943870,1768416651431,-258.319491,0.000249,7]
[401943871,1768416651443,-258.319491,0.000249,7]
[401943872,1768416651453,-151.0,0.000249,7]
[401943873,1768416651465,-151.0,0.000249,7]
[401943874,1768416651475,-151.0,0.000249,7]
[401943875,1768416651484,-151.0,0.000249,7]
[401943876,1768416651494,-151.0,0.000249,7]
[401943877,1768416651504,-151.0,0.000249,7]
[401943878,1768416651514,-285.638493,0.000249,7]
[401943879,1768416651523,-171.177356,0.000249,7]
[401943880,1768416651533,-171.177356,0.000249,7]
[401943881,1768416651543,-341.283719,0.000249,7]
[401943882,1768416651552,-341.283719,0.000249,7]
[401943883,1768416651562,-171.177356,0.000249,7]
[401943884,1768416651572,-341.283719,0.000249,7]
[401943885,1768416651582,-171.177356,0.000249,7]
[401943886,1768416651590,-341.283719,0.000249,7]
[401943887,1768416651600,-151.0,0.000249,7]
[401943888,1768416651609,-677.806969,0.000249,7]
[401943889,1768416651619,-677.806969,0.000249,7]
[401943890,1768416651629,-677.806969,0.000249,7]
[401943891,1768416651639,-677.806969,0.000249,7]
[401943892,1768416651649,-151.0,0.000249,7]
[401943893,1768416651658,-151.0,0.000249,7]
[401943894,1768416651668,-259.047216,0.000249,7]
[401943895,1768416651677,-259.047216,0.000249,7]
[401943896,1768416651686,-259.047216,0.000249,7]
[401943897,1768416651695,-259.047216,0.000249,7]
[401943898,1768416651704,-1570.773702,0.000249,7]
[401943899,1768416651713,-1570.773702,0.000249,7]
[401943900,1768416651722,-683.587352,0.000249,7]
[401943901,1768416651731,-683.587352,0.000249,7]
[401943902,1768416651741,-683.587352,0.000249,7]
[401943903,1768416651750,-683.587352,0.000249,7]
[401943904,1768416651759,-575305.974264,0.000249,2]
[401943905,1768416651770,-2102.360648,0.000249,7]
[401943906,1768416651779,-2102.360648,0.000249,7]
[401943907,1768416651788,-2102.360648,0.000249,7]
[401943908,1768416651798,-442.400587,0.000249,7]
[401943909,1768416651808,-2102.360648,0.000249,7]
[401943910,1768416651818,-442.400587,0.000249,7]
[401943911,1768416651828,-795.987765,0.000249,7]
[401943912,1768416651837,-442.400587,0.000249,7]
[401943913,1768416651847,-151.0,0.000249,7]
[401943914,1768416651856,-442.400587,0.000249,7]
[401943915,1768416651865,-795.987765,0.000249,7]
[401943916,1768416651875,-795.987765,0.000249,7]
[401943917,1768416651884,-795.987765,0.000249,7]
[401943918,1768416651894,-151.0,0.000249,7]
[401943919,1768416651904,-151.0,0.000249,7]
[401943920,1768416651913,-151.0,0.000249,7]
[401943921,1768416651922,-151.0,0.000249,7]
[401943922,1768416651932,-151.0,0.000249,7]
[401943923,1768416651941,-151.0,0.000249,7]
[401943924,1768416651950,-224.869292,0.000249,7]
[401943925,1768416651960,-151.0,0.000249,7]
[401943926,1768416651969,-151.0,0.000249,7]
[401943927,1768416651983,-151.0,0.000249,7]
[401943928,1768416651993,-186.591978,0.000249,7]
[401943929,1768416652003,-186.591978,0.000249,7]
[401943930,1768416652012,-186.591978,0.000249,7]
[401943931,1768416652022,-186.591978,0.000249,7]
[401943932,1768416652032,-302.604582,0.000249,7]
[401943933,1768416652042,-302.604582,0.000249,7]
[401943934,1768416652053,-151.0,0.000249,7]
[401943935,1768416652065,-302.604582,0.000249,7]
[401943936,1768416652075,-151.0,0.000249,7]
[401943937,1768416652084,-302.604582,0.000249,7]
[401943938,1768416652094,-151.0,0.000249,7]
[401943939,1768416652104,-151.0,0.000249,7]
[401943940,1768416652113,-151.0,0.000249,7]
[401943941,1768416652122,-151.0,0.000249,7]
[401943942,1768416652131,-151.0,0.000249,7]
[401943943,1768416652141,-151.0,0.000249,7]
[401943944,1768416652151,-151.0,0.000249,7]
[401943945,1768416652160,-151.0,0.000249,7]
[401943946,1768416652169,-151.0,0.000249,7]
[401943947,1768416652179,-151.0,0.000249,7]
[401943948,1768416652188,-151.0,0.000249,7]
[401943949,1768416652198,-151.0,0.000249,7]
[401943950,1768416652207,-151.0,0.000249,7]
[401943951,1768416652217,-151.0,0.000249,2]
[401943952,1768416652226,-151.0,0.000249,7]
[401943953,1768416652236,-151.0,0.000249,7]
[401943954,1768416652245,-900.0,0.00024915,2]
[401943955,1768416652254,-900.0,0.00024922,2]
[401943956,1768416652264,-186.0,0.00024932,7]
[401943957,1768416652273,-500.0,0.00024932,2]
[401943958,1768416652284,-2100.0,0.00024938,2]
[401943959,1768416652295,-2000.0,0.00024943,7]
[401943960,1768416652305,-313.21462394,0.00024959,110]
[401943961,1768416652315,-500.0,0.00024974,2]
[401943962,1768416652325,-500.0,0.00024985,2]
[401943963,1768416652335,-2000.0,0.00025,14]
[401943964,1768416652344,-2000.0,0.00025,14]
[401943965,1768416652354,-2000.0,0.00025,14]
[401943966,1768416652363,-578.6,0.00025,14]
[401943967,1768416652373,-1041.66666667,0.00025,3]
[401943968,1768416652382,-1041.66666667,0.00025,7]
[401943969,1768416652391,-186.0,0.00025,7]
[401943970,1768416652400,-900.0,0.00025009,7]
[401943971,1768416652410,-522.88356834,0.00025027,7]
[401943972,1768416652419,-160.0,0.00025035,3]
[401943973,1768416652429,-500.0,0.00025069,2]
[401943974,1768416652438,-900.0,0.0002508,7]
[401943975,1768416652447,-1000.0,0.000251,7]
[401943976,1768416652457,-31763.1,0.000251,2]
[401943977,1768416652466,-500.0,0.00025104,7]
[401943978,1768416652476,-767.87515318,0.00025112,19]
[401943979,1768416652485,-1700.0,0.00025132,7]
[401943980,1768416652495,-1296.0967193,0.00025132,7]
[401943981,1768416652505,-402.28551192,0.000252,30]
[401943982,1768416652515,-250.0,0.00025205,2]
[401943983,1768416652525,-1186.74681137,0.00025205,2]
[401943984,1768416652534,-500.0,0.00025206,2]
[401943985,1768416652544,-428.817537,0.00025342,2]
[401943986,1768416652553,-500.0,0.00025343,2]
[401943987,1768416652562,-856.896701,0.00025479,7]
[401943988,1768416652571,-856.896701,0.00025479,7]
[401943989,1768416652580,-856.896701,0.00025479,7]
[401943990,1768416652590,-856.896701,0.00025479,7]
[401943991,1768416652599,-856.896701,0.00025479,7]
[401943992,1768416652609,-856.896701,0.00025479,7]
[401943993,1768416652618,-856.896701,0.00025479,7]
[401943994,1768416652628,-856.896701,0.00025479,7]
[401943995,1768416652637,-856.896701,0.00025479,7]
[401943996,1768416652647,-856.896701,0.00025479,7]
[401943997,1768416652656,-856.896701,0.00025479,7]
[401943998,1768416652666,-856.896701,0.00025479,7]
[401943999,1768416652675,-500.0,0.0002548,2]
[401944000,1768416652685,-500.0,0.00025617,2]
[401944001,1768416652694,-13229.05305027,0.0002565,2]
[401944002,1768416652704,-160.0,0.00025657,4]
[401944003,1768416652714,-206.0,0.00025671,14]
[401944004,1768416652723,-2145.3,0.000257,7]
[401944005,1768416652732,-350.0,0.00025753,2]
[401944006,1768416652743,-500.0,0.00025754,2]
[401944007,1768416652753,-11434.83681078,0.00025782,2]
[401944008,1768416652762,-186.0,0.0002589,7]
[401944009,1768416652772,-500.0,0.00025891,2]
[401944010,1768416652781,-4527.87,0.000259,14]
[401944011,1768416652791,-243.5,0.000259,7]
[401944012,1768416652801,-886.2,0.00025917,2]
[401944013,1768416652811,-767.87515318,0.00025922,20]
[401944014,1768416652820,-2000.0,0.00025947,7]
[401944015,1768416652830,-1111.52679892,0.0002599,2]
[401944016,1768416652839,-6803.24817253,0.00026,10]
[401944017,1768416652850,-530.08019871,0.00026,2]
[401944018,1768416652860,-896.18087791,0.00026,2]
[401944019,1768416652870,-161.0,0.00026,5]
[401944020,1768416652880,-164572.22065642,0.00026,30]
[401944021,1768416652889,-1041.66666667,0.00026,10]
[401944022,1768416652899,-214.05,0.00026,7]
[401944023,1768416652909,-1041.66666667,0.00026,30]
[401944024,1768416652918,-4109.9,0.00026027,2]
[401944025,1768416652927,-500.0,0.00026028,2]
[401944026,1768416652937,-5000.0,0.00026068,2]
[401944027,1768416652946,-261.564,0.00026082,2]
[401944028,1768416652957,-267.537,0.00026082,2]
[401944029,1768416652968,-602.0059149,0.00026082,2]
[401944030,1768416652979,-153.0,0.00026082,2]
[401944031,1768416652993,-602.0059149,0.00026082,2]
[401944032,1768416653003,-602.0059149,0.00026082,2]
[401944033,1768416653012,-153.0,0.00026082,2]
[401944034,1768416653022,-153.0,0.00026082,2]
[401944035,1768416653034,-371.0,0.00026158,2]
[401944036,1768416653043,-194.72949231,0.0002616,2]
[401944037,1768416653053,-500.0,0.00026165,2]
[401944038,1768416653063,-629.0,0.00026227,2]
[401944039,1768416653072,-1367.0,0.00026227,2]
[401944040,1768416653082,-2147.0,0.00026227,2]
[401944041,1768416653091,-160.0,0.0002628,5]
[401944042,1768416653100,-31763.1,0.000263,2]
[401944043,1768416653109,-167.77,0.000263,7]
[401944044,1768416653119,-450.0,0.00026301,2]
[401944045,1768416653128,-500.0,0.00026302,2]
[401944046,1768416653138,-369.0,0.00026356,2]
[401944047,1768416653147,-369.0,0.00026387,7]
[401944048,1768416653156,-500.0,0.00026439,2]
[401944049,1768416653166,-377.5822533,0.00026444,2]
[401944050,1768416653175,-166.8518887,0.00026444,2]
[401944051,1768416653184,-371.0,0.00026462,7]
[401944052,1768416653233,-369.0,0.00026473,2]
[401944053,1768416653243,-369.0,0.0002649,2]
[401944054,1768416653253,-200.0,0.0002654,14]
[401944055,1768416653263,-369.0,0.00026564,2]
[401944056,1768416653272,-500.0,0.00026576,2]
[401944057,1768416653282,-500.0,0.00026713,2]
[401944058,1768416653291,-767.87515318,0.00026732,22]
[401944059,1768416653300,-372.0,0.00026753,7]
[401944060,1768416653310,-207.0,0.00026767,14]
[401944061,1768416653319,-369.0,0.00026769,2]
[401944062,1768416653329,-1041.66666667,0.000268,30]
[401944063,1768416653338,-2145.3,0.000268,7]
[401944064,1768416653348,-550.0,0.00026849,2]
[401944065,1768416653357,-369.0,0.00026868,7]
[401944066,1768416653366,-160.0,0.00026902,6]
[401944067,1768416653376,-153.0,0.00026904,2]
[401944068,1768416653385,-896.3005204,0.00026904,2]
[401944069,1768416653394,-153.0,0.00026904,2]
[401944070,1768416653403,-186.6184142,0.00026904,2]
[401944071,1768416653412,-2000.0,0.00026951,7]
[401944072,1768416653422,-589.69745305,0.00026954,5]
[401944073,1768416653432,-1000.0,0.00026961,30]
[401944074,1768416653441,-1000.0,0.00026961,30]
[401944075,1768416653451,-1000.0,0.00026961,30]
[401944076,1768416653460,-715.0,0.00026961,30]
[401944077,1768416653469,-372.0,0.00026973,2]
[401944078,1768416653479,-1000.0,0.00027,4]
[401944079,1768416653489,-50000.0,0.00027,2]
[401944080,1768416653499,-600.0,0.00027,14]
[401944081,1768416653509,-369.0,0.00027003,2]
[401944082,1768416653519,-4527.87,0.000271,14]
[401944083,1768416653529,-369.0,0.00027104,2]
[401944084,1768416653539,-369.0,0.00027111,2]
[401944085,1768416653549,-188.0,0.00027185,7]
[401944086,1768416653559,-214.05,0.000272,7]
[401944087,1768416653569,-243.5,0.000272,7]
[401944088,1768416653579,-151.0,0.000272,7]
[401944089,1768416653589,-886.2,0.00027232,5]
[401944090,1768416653599,-369.0,0.00027294,2]
[401944091,1768416653608,-5000.0,0.00027368,2]
[401944092,1768416653618,-394.15965016,0.0002739,7]
[401944093,1768416653627,-259.047216,0.0002739,7]
[401944094,1768416653636,-259.047216,0.0002739,7]
[401944095,1768416653646,-259.047216,0.0002739,7]
[401944096,1768416653655,-259.047216,0.0002739,7]
[401944097,1768416653664,-1570.773702,0.0002739,7]
[401944098,1768416653673,-1570.773702,0.0002739,7]
[401944099,1768416653683,-683.587352,0.0002739,7]
[401944100,1768416653692,-683.587352,0.0002739,7]
[401944101,1768416653701,-683.587352,0.0002739,7]
[401944102,1768416653710,-683.587352,0.0002739,7]
[401944103,1768416653719,-2102.360648,0.0002739,7]
[401944104,1768416653728,-2102.360648,0.0002739,7]
[401944105,1768416653737,-2102.360648,0.0002739,7]
[401944106,1768416653747,-442.400587,0.0002739,7]
[401944107,1768416653757,-2102.360648,0.0002739,7]
[401944108,1768416653767,-442.400587,0.0002739,7]
[401944109,1768416653776,-442.400587,0.0002739,7]
[401944110,1768416653785,-795.987765,0.0002739,7]
[401944111,1768416653794,-151.0,0.0002739,7]
[401944112,1768416653803,-442.400587,0.0002739,7]
[401944113,1768416653813,-795.987765,0.0002739,7]
[401944114,1768416653822,-795.987765,0.0002739,7]
[401944115,1768416653831,-795.987765,0.0002739,7]
[401944116,1768416653840,-231.464097,0.0002739,7]
[401944117,1768416653849,-151.0,0.0002739,7]